bitfinex-derivatives/quotes_BNBF0:USTF0_20250309
["timestamp","ask_amount","ask_price","bid_price","bid_amount"]
[1741533058810,0.30410409,572.54,571.9,0.29262081]
[1741533059710,2.00091429,572.53,571.9,0.29262081]
[1741533060308,2.25719925,572.52,571.89,0.3497176]
[1741533060508,0.98228496,572.51,571.89,0.3497176]
[1741533060708,2.79628496,572.51,571.89,0.3497176]
[1741533060906,2.93419925,572.5,571.89,0.3497176]
[1741533061110,0.98234869,572.49,571.89,0.3497176]
[1741533061510,1.27491429,572.48,571.89,0.3497176]
[1741533062013,1.27491429,572.47,571.89,0.3497176]
[1741533062509,1.27491429,572.46,571.89,0.3497176]
[1741533063014,1.27491429,572.45,571.89,0.3497176]
[1741533063513,1.27491429,572.44,571.89,0.3497176]
[1741533064011,1.57907819,572.44,571.89,0.3497176]
[1741533064315,0.3041639,572.44,571.89,0.3497176]
[1741533065308,1.27491429,572.43,571.89,0.3497176]
[1741533065512,0.98156442,572.42,571.89,0.3497176]
[1741533065709,2.25647871,572.42,571.89,0.3497176]
[1741533065912,1.27491429,572.42,571.89,0.3497176]
[1741533066113,2.25648334,572.41,571.89,0.3497176]
[1741533066416,1.27491429,572.41,571.89,0.3497176]
[1741533066718,1.95191429,572.4,571.89,0.3497176]
[1741533067017,1.27491429,572.39,571.89,0.3497176]
[1741533067418,0.98120511,572.4,571.89,0.3497176]
[1741533069820,0.677,572.4,571.89,0.3497176]
[1741533070322,0.3042091,572.39,571.89,0.3497176]
[1741533072719,0.677,572.4,571.89,0.3497176]
[1741533073225,0.30429555,572.39,571.89,0.3497176]
[1741533074018,0.677,572.4,571.9,0.2927496]
[1741533076131,1.088,572.39,571.89,0.3497176]
[1741533076729,0.65,572.38,571.89,0.3497176]
[1741533077126,0.65,572.38,571.9,0.2928985]
[1741533079438,0.95415858,572.38,571.9,0.2928985]
[1741533079632,0.95415858,572.38,571.89,0.3497176]
[1741533079830,0.735,572.37,571.89,0.3497176]
[1741533080435,0.735,572.37,571.9,0.29304049]
[1741533081536,0.735,572.37,571.89,0.3497176]
[1741533081937,0.735,572.37,571.9,0.29311027]
[1741533082440,0.634,572.36,571.9,0.29311027]
[1741533083934,0.634,572.36,571.89,0.3497176]
[1741533084135,0.634,572.36,571.9,0.29293468]
[1741533087841,0.626,572.35,571.9,0.29293468]
[1741533089339,0.905,572.34,571.89,0.3497176]
[1741533089545,0.905,572.34,571.9,0.29281442]
[1741533092941,0.905,572.34,571.91,0.29283907]
[1741533093142,0.905,572.34,571.92,0.29283907]
[1741533093448,0.905,572.34,571.93,0.29283907]
[1741533093746,0.905,572.34,571.94,0.29283907]
[1741533094048,0.905,572.34,571.95,0.29283907]
[1741533094342,0.905,572.34,571.96,0.29283907]
[1741533094547,0.905,572.34,571.9,0.29283907]
[1741533094742,0.905,572.34,571.91,0.29283907]
[1741533094948,0.905,572.34,571.92,0.29284425]
[1741533095146,0.905,572.34,571.89,0.3497176]
[1741533095147,0.905,572.34,571.9,0.29284425]
[1741533095342,0.905,572.34,571.91,0.29284425]
[1741533095547,0.905,572.34,571.9,0.29284425]
[1741533095748,0.905,572.34,571.91,0.29287377]
[1741533095950,0.905,572.34,571.9,0.29287377]
[1741533096248,0.905,572.34,571.91,0.29287377]
[1741533096448,0.905,572.34,571.9,0.29287377]
[1741533096645,0.905,572.34,571.91,0.29287377]
[1741533096845,0.905,572.34,571.9,0.29287377]
[1741533097050,0.905,572.34,571.91,0.29287247]
[1741533097246,0.905,572.34,571.89,0.3497176]
[1741533097551,0.905,572.34,571.9,0.29284346]
[1741533098252,0.905,572.34,571.89,0.3497176]
[1741533098448,0.905,572.34,571.9,0.29283901]
[1741533099051,0.905,572.34,571.89,0.3497176]
[1741533099249,0.905,572.34,571.9,0.29282059]
[1741533099552,0.905,572.34,571.89,0.3497176]
[1741533099752,0.883,572.33,571.89,0.3497176]
[1741533101049,0.883,572.33,571.9,0.29276016]
[1741533101250,0.883,572.33,571.89,0.3497176]
[1741533105356,1.457,572.33,571.89,0.3497176]
[1741533106055,2.164,572.33,571.89,0.3497176]
[1741533106453,1.28016173,572.32,571.89,0.3497176]
[1741533106856,2.164,572.33,571.89,0.3497176]
[1741533108351,1.28071227,572.32,571.89,0.3497176]
[1741533108651,2.06071227,572.32,571.89,0.3497176]
[1741533108851,1.28071227,572.31,571.89,0.3497176]
[1741533109259,0.78,572.32,571.89,0.3497176]
[1741533109456,0.78,572.32,571.9,0.29256963]
[1741533112657,0.78,572.32,571.89,0.3497176]
[1741533112857,0.78,572.32,571.9,0.29249981]
[1741533113159,1.385,572.32,571.9,0.29249981]
[1741533115359,1.385,572.32,571.91,0.29242102]
[1741533115553,1.385,572.32,571.9,0.29242102]
[1741533117761,1.28294444,572.31,571.9,0.29242102]
[1741533118060,1.28294444,572.31,571.89,0.3497176]
[1741533118261,1.28294444,572.3,571.9,0.29239586]
[1741533118456,0.98937152,572.29,571.89,0.3497176]
[1741533118654,0.98937152,572.28,571.89,0.3497176]
[1741533118858,0.98937152,572.27,571.89,0.3497176]
[1741533119155,2.27231596,572.26,571.89,0.3497176]
[1741533119353,1.28294444,572.26,571.89,0.3497176]
[1741533119661,1.28294444,572.25,571.89,0.3497176]
[1741533120258,1.28294444,572.24,571.89,0.3497176]
[1741533120858,1.385,572.32,571.9,0.29252029]
[1741533121062,0.98947793,572.31,571.9,0.29252029]
[1741533121263,2.27265561,572.3,571.9,0.29252029]
[1741533121463,0.98947793,572.29,571.9,0.29252029]
[1741533121658,2.27265561,572.28,571.9,0.29252029]
[1741533121858,0.98947793,572.27,571.9,0.29252029]
[1741533122062,1.28317768,572.26,571.9,0.29252029]
[1741533122459,1.28317768,572.25,571.9,0.29252029]
[1741533122663,0.9894815,572.24,571.9,0.29252029]
[1741533122865,0.98950644,572.23,571.89,0.3497176]
[1741533123065,0.98950644,572.22,571.89,0.3497176]
[1741533123267,1.28317768,572.23,571.89,0.3497176]
[1741533123468,2.27261336,572.22,571.89,0.3497176]
[1741533123663,1.28317768,572.22,571.89,0.3497176]
[1741533123865,0.98948932,572.21,571.89,0.3497176]
[1741533124070,0.98948932,572.2,571.89,0.3497176]
[1741533124267,0.98948932,572.19,571.89,0.3497176]
[1741533124464,0.98948932,572.18,571.89,0.3497176]
[1741533124669,0.98948932,572.17,571.5,0.30425431]
[1741533124970,1.84348932,572.16,571.51,0.64254566]
[1741533125172,0.854,572.16,571.52,0.29259553]
[1741533125362,1.28317768,572.15,571.52,0.29259553]
[1741533125871,1.28317768,572.14,571.52,0.29259553]
[1741533126263,0.854,572.16,571.52,0.29259553]
[1741533126664,1.28251471,572.15,571.52,0.29259553]
[1741533127266,1.28251471,572.14,571.52,0.29259553]
[1741533127669,0.634,572.13,571.52,0.29259553]
[1741533128469,0.979,572.12,571.53,0.29267903]
[1741533128668,0.979,572.12,571.54,0.29267903]
[1741533128870,0.979,572.12,571.52,0.29267903]
[1741533129269,0.917,572.11,571.53,0.34993788]
[1741533129466,0.917,572.11,571.54,0.29267903]
[1741533130972,0.917,572.11,571.55,0.34992564]
[1741533131175,0.917,572.11,571.56,0.2927798]
[1741533131375,0.917,572.11,571.57,0.34991339]
[1741533131570,0.917,572.11,571.58,0.2927798]
[1741533134976,0.81,572.1,571.58,0.2927798]
[1741533135574,0.81,572.1,571.57,0.34991339]
[1741533135771,0.81,572.1,571.59,0.34990115]
[1741533136074,0.81,572.1,571.6,0.29230579]
[1741533136274,0.81,572.1,571.61,0.34988891]
[1741533136478,0.81,572.1,571.62,0.29230579]
[1741533136772,0.81,572.1,571.63,0.34987666]
[1741533137177,0.81,572.1,571.64,0.29230579]
[1741533137478,0.81,572.1,571.65,0.34986442]
[1741533137778,0.81,572.1,571.66,0.29226049]
[1741533137979,0.81,572.1,571.67,0.34985218]
[1741533138277,0.81,572.1,571.68,0.29226049]
[1741533139879,0.81,572.1,571.69,0.34983994]
[1741533140075,0.683,572.09,571.7,0.29226049]
[1741533140478,0.683,572.09,571.71,0.3498277]
[1741533140678,0.683,572.09,571.72,0.29226049]
[1741533142078,0.683,572.09,571.73,0.29237358]
[1741533142280,0.683,572.09,571.72,0.29237358]
[1741533144880,0.683,572.09,571.71,0.3498277]
[1741533145181,0.683,572.09,571.72,0.29230252]
[1741533146474,0.683,572.09,571.73,0.34981547]
[1741533146877,0.683,572.09,571.74,0.29230252]
[1741533147075,0.683,572.09,571.75,0.34980323]
[1741533147275,0.683,572.09,571.76,0.29230252]
[1741533147876,0.683,572.09,571.77,0.34979099]
[1741533148076,0.683,572.09,571.78,0.29230252]
[1741533148685,0.683,572.09,571.79,0.64170121]
[1741533148882,0.683,572.09,571.8,0.29192245]
[1741533149082,0.683,572.09,571.8,0.64169509]
[1741533149283,0.683,572.09,571.81,0.29192245]
[1741533149483,0.683,572.09,571.82,0.34976041]
[1741533149683,0.683,572.09,571.83,0.29192245]
[1741533149984,0.683,572.09,571.84,0.34974818]
[1741533150183,0.683,572.09,571.85,0.29192245]
[1741533150378,0.683,572.09,571.86,0.34973594]
[1741533150583,0.683,572.09,571.87,0.29192245]
[1741533154084,0.683,572.09,571.86,0.34973594]
[1741533154285,0.683,572.09,571.87,0.29186736]
[1741533155989,0.683,572.09,571.88,0.34972371]
[1741533156289,0.683,572.09,571.89,0.29186736]
[1741533156487,0.683,572.09,571.89,0.64158496]
[1741533156686,0.683,572.09,571.9,0.29186736]
[1741533157684,0.683,572.09,571.89,0.3497176]
[1741533157883,0.683,572.09,571.9,0.29190925]
[1741533159091,0.683,572.09,571.91,0.34970537]
[1741533159288,0.683,572.09,571.92,0.29190925]
[1741533159986,0.683,572.09,571.93,0.34969314]
[1741533160292,0.683,572.09,571.94,0.29190925]
[1741533160489,0.683,572.09,571.95,0.34968091]
[1741533160690,0.683,572.09,571.96,0.29190925]
[1741533160892,0.683,572.09,571.97,0.34966868]
[1741533161091,0.683,572.09,571.98,0.29190925]
[1741533161391,0.683,572.09,571.99,0.34965646]
[1741533161591,0.683,572.09,572.0,0.29190925]
[1741533161798,0.683,572.09,572.01,0.34964423]
[1741533161995,0.683,572.09,572.02,0.29190925]
[1741533163697,0.683,572.09,572.03,0.34963201]
[1741533164093,0.683,572.09,572.04,0.29190925]
[1741533164293,0.683,572.09,572.05,0.34961978]
[1741533164499,0.683,572.09,572.06,0.29190925]
[1741533164693,0.683,572.09,572.07,0.34960756]
[1741533164894,0.683,572.09,572.08,0.29190925]
[1741533166795,0.683,572.09,572.07,0.34960756]
[1741533166994,0.683,572.09,572.08,0.29150231]
[1741533169402,0.683,572.09,572.07,0.34960756]
[1741533169601,0.683,572.09,572.08,0.29137141]
[1741533172798,0.683,572.09,572.08,0.64097286]
[1741533174300,0.683,572.09,572.08,0.64073112]
[1741533178109,0.683,572.09,572.08,0.64072654]
[1741533182013,2.135,572.46,572.08,0.64072654]
[1741533182214,2.135,572.46,572.09,0.64072043]
[1741533182515,2.852,572.46,572.1,0.64071432]
[1741533182714,2.852,572.46,572.11,0.29112509]
[1741533183116,2.852,572.46,572.12,0.64060554]
[1741533183317,2.852,572.46,572.05,0.30403103]
[1741533183318,2.852,572.46,572.13,0.64059943]
[1741533183515,2.852,572.46,572.14,0.64059332]
[1741533183812,2.852,572.46,572.15,0.64058721]
[1741533184011,2.852,572.46,572.16,0.6405811]
[1741533184215,2.852,572.46,572.17,0.64057499]
[1741533184415,2.852,572.46,572.18,0.64056888]
[1741533184612,2.852,572.46,572.19,0.64056277]
[1741533184814,2.852,572.46,572.2,0.34952813]
[1741533185011,2.852,572.46,572.21,0.29107502]
[1741533185213,2.852,572.46,572.22,0.34951592]
[1741533185410,2.852,572.46,572.23,0.29107502]
[1741533186716,2.082,572.46,572.23,0.29107502]
[1741533187617,1.364,572.46,572.23,0.29107502]
[1741533190223,1.364,572.46,572.24,0.3495037]
[1741533190421,1.364,572.46,572.25,0.29156598]
[1741533190621,1.364,572.46,572.26,0.34949148]
[1741533190817,1.364,572.46,572.27,0.29156598]
[1741533192124,1.364,572.46,572.27,0.64105136]
[1741533192321,1.364,572.46,572.28,0.29149653]
[1741533193928,1.364,572.46,572.29,0.34947316]
[1741533194230,1.364,572.46,572.3,0.29149653]
[1741533195130,1.364,572.46,572.29,0.34947316]
[1741533196024,1.364,572.46,572.3,0.29172369]
[1741533199432,1.364,572.46,572.29,0.34947316]
[1741533199627,0.647,572.46,572.3,0.29175402]
[1741533200230,0.647,572.46,572.31,0.34946095]
[1741533200434,0.647,572.46,572.32,0.29175402]
[1741533201229,0.647,572.46,572.31,0.34946095]
[1741533201535,0.647,572.46,572.32,0.2916912]
[1741533202737,0.647,572.46,572.33,0.34944874]
[1741533202931,0.647,572.46,572.34,0.2916912]
[1741533203133,0.647,572.46,572.35,0.34943653]
[1741533203637,0.647,572.46,572.36,0.29152917]
[1741533206938,0.647,572.46,572.37,0.29147048]
[1741533207140,0.647,572.46,572.36,0.29147048]
[1741533207343,0.72,572.51,572.37,0.29147048]
[1741533207544,0.72,572.51,572.38,0.29147048]
[1741533207745,0.72,572.51,572.36,0.29147048]
[1741533207948,0.72,572.51,572.37,0.29147048]
[1741533208139,0.72,572.51,572.36,0.29147048]
[1741533208939,0.72,572.51,572.37,0.34942432]
[1741533209245,0.72,572.51,572.38,0.29147048]
[1741533209445,0.72,572.51,572.39,0.34941211]
[1741533209743,0.72,572.51,572.4,0.29147048]
[1741533210544,0.72,572.51,572.41,0.3493999]
[1741533210740,0.72,572.51,572.42,0.29147048]
[1741533211342,0.72,572.51,572.43,0.34938769]
[1741533211543,0.72,572.51,572.44,0.29147048]
[1741533211740,0.636,572.58,572.44,0.29147048]
[1741533212147,0.636,572.58,572.44,0.64085207]
[1741533212342,0.636,572.58,572.44,0.34938159]
[1741533212545,0.636,572.58,572.45,0.2911596]
[1741533213846,0.636,572.58,572.46,0.34936938]
[1741533214046,0.636,572.58,572.47,0.2911596]
[1741533221461,0.636,572.58,572.46,0.34936938]
[1741533221656,0.636,572.58,572.47,0.29130448]
[1741533222261,0.706,572.79,572.47,0.29130448]
[1741533223364,0.706,572.79,572.48,0.2913537]
[1741533223564,0.706,572.79,572.47,0.2913537]
[1741533223757,0.706,572.79,572.48,0.2913537]
[1741533223960,0.706,572.79,572.47,0.2913537]
[1741533224161,0.706,572.79,572.48,0.2913537]
[1741533224364,0.706,572.79,572.47,0.2913537]
[1741533224564,0.706,572.79,572.48,0.64071088]
[1741533224767,0.706,572.79,572.49,0.64070478]
[1741533224963,0.706,572.79,572.5,0.2913537]
[1741533226664,0.706,572.79,572.51,0.34933887]
[1741533226866,0.706,572.79,572.52,0.2913537]
[1741533227064,0.706,572.79,572.53,0.34932667]
[1741533227368,0.706,572.79,572.54,0.2913537]
[1741533227563,0.706,572.79,572.55,0.34931447]
[1741533227769,0.706,572.79,572.56,0.2913537]
[1741533227963,0.706,572.79,572.57,0.34930226]
[1741533228166,0.706,572.79,572.58,0.2913537]
[1741533228664,0.706,572.79,572.57,0.34930226]
[1741533228869,0.706,572.79,572.58,0.29130089]
[1741533229269,0.706,572.79,572.59,0.34929006]
[1741533229469,0.706,572.79,572.6,0.29130089]
[1741533229662,0.706,572.79,572.61,0.34927786]
[1741533229868,0.706,572.79,572.62,0.29130089]
[1741533230065,0.706,572.79,572.62,0.64057265]
[1741533230272,0.706,572.79,572.63,0.29130089]
[1741533232373,0.706,572.79,572.64,0.34925956]
[1741533232677,0.706,572.79,572.65,0.29108971]
[1741533232878,0.706,572.79,572.66,0.34924737]
[1741533233078,2.288,572.85,572.67,0.29108971]
[1741533233274,1.714,572.85,572.68,0.34923517]
[1741533233475,1.714,572.85,572.69,0.29108971]
[1741533233679,1.714,572.85,572.7,0.34922297]
[1741533233879,1.714,572.85,572.71,0.29108971]
[1741533234079,1.714,572.85,572.72,0.34921078]
[1741533234279,1.714,572.85,572.73,0.29081938]
[1741533236177,1.714,572.85,572.74,0.29077967]
[1741533236378,1.714,572.85,572.75,0.29077967]
[1741533236578,1.714,572.85,572.73,0.29077967]
[1741533236779,1.714,572.85,572.74,0.29077967]
[1741533236981,1.714,572.85,572.73,0.29077967]
[1741533239780,1.714,572.85,572.74,0.29073183]
[1741533239982,1.714,572.85,572.73,0.29073183]
[1741533240281,1.714,572.85,572.74,0.29073183]
[1741533240478,1.714,572.85,572.75,0.29073183]
[1741533240678,1.714,572.85,572.73,0.29073183]
[1741533240987,1.714,572.85,572.74,0.29073183]
[1741533241184,0.84,572.85,572.73,0.29073183]
[1741533241385,0.84,572.85,572.74,0.29073183]
[1741533241587,0.84,572.85,572.75,0.29073183]
[1741533241885,0.84,572.85,572.76,0.29073183]
[1741533242283,0.84,572.85,572.77,0.29073183]
[1741533242483,0.84,572.85,572.73,0.29073183]
[1741533242682,0.84,572.85,572.74,0.29073183]
[1741533242884,0.84,572.85,572.75,0.29073183]
[1741533243086,0.84,572.85,572.72,0.34921078]
[1741533243087,0.84,572.85,572.76,0.29073183]
[1741533243286,0.84,572.85,572.73,0.29073183]
[1741533243488,0.84,572.85,572.74,0.29073183]
[1741533243683,0.84,572.85,572.75,0.34919249]
[1741533243889,0.84,572.85,572.76,0.29073183]
[1741533246091,0.84,572.85,572.77,0.34918029]
[1741533246290,0.84,572.85,572.78,0.29073183]
[1741533246487,0.84,572.85,572.79,0.3491681]
[1741533246692,0.84,572.85,572.8,0.29073183]
[1741533248791,1.404,572.88,572.8,0.29073183]
[1741533251383,1.404,572.88,572.81,0.34915591]
[1741533251592,1.404,572.88,572.82,0.29073183]
[1741533253595,1.404,572.88,572.81,0.34915591]
[1741533253891,1.404,572.88,572.82,0.2906311]
[1741533254888,0.835,572.88,572.82,0.2906311]
[1741533255393,0.835,572.88,572.83,0.2906266]
[1741533255690,0.835,572.88,572.84,0.2906266]
[1741533255893,0.835,572.88,572.82,0.2906266]
[1741533256094,0.835,572.88,572.83,0.2906266]
[1741533256293,0.835,572.88,572.82,0.2906266]
[1741533256493,0.835,572.88,572.81,0.34915591]
[1741533256494,0.835,572.88,572.83,0.2906266]
[1741533256693,0.835,572.88,572.82,0.2906266]
[1741533256890,0.835,572.88,572.83,0.2906266]
[1741533257090,0.835,572.88,572.84,0.2906266]
[1741533257289,0.835,572.88,572.82,0.2906266]
[1741533257494,0.835,572.88,572.83,0.2906266]
[1741533257695,0.835,572.88,572.82,0.2906266]
[1741533257890,0.835,572.88,572.83,0.2906266]
[1741533258093,0.835,572.88,572.84,0.2906266]
[1741533258294,0.835,572.88,572.85,0.2906266]
[1741533258491,0.835,572.88,572.86,0.2906266]
[1741533258796,0.835,572.88,572.87,0.2906266]
[1741533258998,0.835,572.88,572.81,0.34915591]
[1741533259196,0.835,572.88,572.82,0.29069629]
[1741533259589,0.835,572.88,572.83,0.34914372]
[1741533259796,0.835,572.88,572.84,0.29069629]
[1741533259991,0.835,572.88,572.85,0.34913153]
[1741533260190,0.835,572.88,572.86,0.29069629]
[1741533260396,0.835,572.88,572.87,0.34911934]
[1741533260695,0.835,572.88,572.87,0.63981563]
[1741533262500,0.835,572.88,572.87,0.63972766]
[1741533262698,0.835,572.88,572.87,0.34911934]
[1741533262898,0.835,572.88,572.87,0.6397311]
[1741533264598,0.835,572.88,572.87,0.63962055]
[1741533271708,0.835,572.88,572.87,0.63964778]
[1741533273616,0.835,572.88,572.87,0.63967388]
[1741533275616,0.628,573.19,572.87,0.63967388]
[1741533275917,0.628,573.19,572.88,0.29055454]
[1741533276211,0.628,573.19,572.89,0.34910715]
[1741533276416,0.628,573.19,572.9,0.29055454]
[1741533276617,0.628,573.19,572.9,0.6396556]
[1741533276916,0.628,573.19,572.91,0.63964951]
[1741533277309,0.628,573.19,572.92,0.29055454]
[1741533278916,0.786,573.2,572.92,0.29055454]
[1741533279516,0.786,573.2,572.92,0.63964341]
[1741533279817,0.786,573.2,572.93,0.29055454]
[1741533280714,0.786,573.2,572.92,0.34908887]
[1741533280917,0.786,573.2,572.93,0.29045435]
[1741533282218,0.786,573.2,572.93,0.63953713]
[1741533282419,0.786,573.2,572.94,0.29045435]
[1741533282915,2.089,573.25,572.94,0.29045435]
[1741533284417,2.089,573.25,572.93,0.34908278]
[1741533284418,1.472,573.25,572.93,0.34908278]
[1741533284617,1.472,573.25,572.94,0.29034967]
[1741533285317,1.472,573.25,572.95,0.34907059]
[1741533285518,1.472,573.25,572.96,0.29034967]
[1741533285719,1.472,573.25,572.97,0.34905841]
[1741533285925,1.472,573.25,572.98,0.29034967]
[1741533287819,0.777,573.25,572.98,0.29034967]
[1741533288018,0.777,573.25,572.99,0.29023644]
[1741533288420,0.777,573.25,572.97,0.34905841]
[1741533288616,0.777,573.25,572.98,0.29024924]
[1741533293220,0.777,573.25,572.97,0.34905841]
[1741533293423,0.777,573.25,572.98,0.29016626]
[1741533293828,0.777,573.25,572.99,0.34904623]
[1741533294026,0.777,573.25,573.0,0.29016626]
[1741533294227,0.777,573.25,573.01,0.34903404]
[1741533294428,0.777,573.25,573.02,0.29016626]
[1741533294722,0.777,573.25,573.02,0.63919421]
[1741533294927,0.777,573.25,573.03,0.29016626]
[1741533295530,0.693,573.3,573.03,0.29016626]
[1741533299029,0.693,573.3,573.04,0.29008167]
[1741533299232,0.693,573.3,573.03,0.29008167]
[1741533299530,0.693,573.3,573.04,0.29008167]
[1741533299731,0.693,573.3,573.05,0.29008167]
[1741533299930,0.693,573.3,573.03,0.29008167]
[1741533300131,0.693,573.3,573.04,0.29008167]
[1741533300332,0.693,573.3,573.03,0.29008167]
[1741533301329,0.693,573.3,573.02,0.34902795]
[1741533301534,0.693,573.3,573.03,0.28998836]
[1741533301732,0.693,573.3,573.02,0.34902795]
[1741533301934,0.693,573.3,573.03,0.29003856]
[1741533302133,0.693,573.3,573.02,0.34902795]
[1741533315641,1.27965319,573.29,573.02,0.34902795]
[1741533316043,0.693,573.3,573.02,0.34902795]
[1741533318841,2.26624674,573.29,573.02,0.34902795]
[1741533319043,1.27953785,573.29,573.02,0.34902795]
[1741533319447,1.27953785,573.28,572.2,1.30804179]
[1741533319647,1.27953785,573.28,572.22,0.34951592]
[1741533319846,1.27953785,573.28,572.23,0.2907546]
[1741533320046,1.27953785,573.27,572.25,0.34949759]
[1741533320242,1.27953785,573.27,572.26,0.2907546]
[1741533320447,1.27913201,573.26,572.28,0.34947927]
[1741533320648,1.27913201,573.26,572.29,0.2908075]
[1741533320946,1.27122739,573.25,572.31,0.34946095]
[1741533321351,0.693,573.3,572.32,0.29084044]
[1741533321547,0.98640956,573.29,572.34,0.34944263]
[1741533321751,0.98640956,573.28,572.35,0.29084044]
[1741533321952,0.693,573.3,572.37,0.34942432]
[1741533322147,0.98619556,573.29,572.38,0.29084044]
[1741533322452,0.98619556,573.28,572.4,0.349406]
[1741533322651,0.693,573.3,572.41,0.2904749]
[1741533322853,0.626,573.27,572.43,0.34938769]
[1741533323155,0.626,573.27,572.44,0.2904749]
[1741533323452,0.626,573.27,572.46,0.34936938]
[1741533323648,0.626,573.27,572.47,0.2904749]
[1741533323852,0.626,573.27,572.48,0.34935718]
[1741533324352,0.626,573.27,572.49,0.29043813]
[1741533324553,0.626,573.27,572.5,0.34934497]
[1741533324748,0.626,573.27,572.51,0.29043813]
[1741533324954,0.626,573.27,572.52,0.34933277]
[1741533325153,0.626,573.27,572.53,0.29043813]
[1741533325355,0.626,573.27,572.54,0.34932057]
[1741533325554,0.626,573.27,572.55,0.29043813]
[1741533325753,0.626,573.27,572.56,0.34930836]
[1741533325954,0.626,573.27,572.57,0.29048444]
[1741533326253,0.626,573.27,572.58,0.34929616]
[1741533326454,0.626,573.27,572.59,0.29048444]
[1741533326754,0.626,573.27,572.6,0.34928396]
[1741533326949,0.626,573.27,572.61,0.29048444]
[1741533328048,0.626,573.27,572.62,0.29038274]
[1741533328249,0.626,573.27,572.63,0.29038274]
[1741533328454,0.626,573.27,572.64,0.29038274]
[1741533328650,0.737,573.26,572.65,0.29038274]
[1741533328855,0.737,573.26,572.6,0.34928396]
[1741533328856,0.737,573.26,572.66,0.29038274]
[1741533329157,0.737,573.26,572.67,0.29038274]
[1741533330959,0.98512358,573.25,572.67,0.29038274]
[1741533331160,0.98512358,573.24,572.67,0.29038274]
[1741533331363,0.98512358,573.23,572.66,0.34924737]
[1741533331568,0.98512358,573.22,572.66,0.34924737]
[1741533331859,0.737,573.26,572.66,0.34924737]
[1741533332059,0.98492498,573.25,572.67,0.29076166]
[1741533332259,0.98492498,573.24,572.67,0.29076166]
[1741533332454,0.98492498,573.23,572.67,0.29076166]
[1741533332658,0.98492498,573.22,572.67,0.29076166]
[1741533332859,0.737,573.26,572.67,0.29076166]
[1741533333060,0.984699,573.25,572.67,0.29076166]
[1741533333260,0.984699,573.24,572.67,0.29076166]
[1741533333453,0.984699,573.23,572.67,0.29076166]
[1741533333653,0.984699,573.22,572.67,0.29076166]
[1741533333857,2.26152232,573.21,572.67,0.29076166]
[1741533334058,0.984699,573.2,572.67,0.29076166]
[1741533334462,0.98421622,573.2,572.67,0.29076166]
[1741533334668,1.27682332,573.19,572.67,0.29076166]
[1741533335059,0.605,573.21,572.67,0.29076166]
[1741533335060,1.27682332,573.18,572.67,0.29076166]
[1741533335257,0.98422677,573.17,572.66,0.34924737]
[1741533335461,1.27682332,573.17,572.66,0.34924737]
[1741533336057,2.26084273,573.16,572.66,0.34924737]
[1741533336363,1.27682332,573.16,572.66,0.34924737]
[1741533336565,1.27682332,573.15,572.66,0.34924737]
[1741533337465,1.27682332,573.14,572.66,0.34924737]
[1741533338166,1.27682332,573.13,572.66,0.34924737]
[1741533338560,1.27682332,573.12,572.66,0.34924737]
[1741533338767,1.27682332,573.11,572.66,0.34924737]
[1741533339160,1.27682332,573.19,572.66,0.34924737]
[1741533339371,0.98312359,573.18,572.66,0.34924737]
[1741533339566,0.98286879,573.18,572.66,0.34924737]
[1741533340167,1.27682332,573.17,572.66,0.34924737]
[1741533340360,1.58061018,573.17,572.66,0.34924737]
[1741533340559,1.84582332,573.16,572.66,0.34924737]
[1741533340959,0.907,573.15,572.66,0.34924737]
[1741533341161,1.88967524,573.15,572.66,0.34924737]
[1741533341364,1.27682332,573.14,572.66,0.34924737]
[1741533341973,2.18382332,573.15,572.66,0.34924737]
[1741533343760,0.907,573.15,572.66,0.34924737]
[1741533346172,0.907,573.15,572.67,0.2907979]
[1741533346373,0.795,573.14,572.67,0.2907979]